{"text_format":"1","workbook":"xlsx","n_sheets":1,"sheets":["nouvelle fiche de notation de s"],"not_rendered":{"charts":0,"images":1,"macros":1,"external_links":0,"defined_names":1,"comments":0,"pivot_tables":0},"unopened":[],"bounds":{"document_bytes":16777216,"sheet_cells":100000,"rows_first":2000,"rows_last":500,"rows_between":2000,"halvings":0,"cell_chars":16384,"cell_head_chars":4096},"cells_cut":0,"cells_raw":0,"read":"whole","date_system":"1904"}

{"sheet":"nouvelle fiche de notation de s","index":0,"n_rows":63,"n_cols":14,"rows_kept":63,"cut":false,"hidden":false,"merged":[[48,4,49,4],[48,5,49,5],[48,0,49,1],[48,2,49,2],[0,0,0,6],[54,0,54,2],[24,6,24,7],[11,1,12,7],[14,4,14,5],[17,6,17,7],[18,4,18,6],[18,0,19,1],[18,2,19,2],[25,2,26,2],[40,2,41,2],[25,0,26,1],[40,0,41,1],[48,3,49,3],[48,6,49,6],[48,7,49,7],[55,0,62,2],[18,3,19,3],[3,1,5,7],[9,1,9,7],[10,1,10,7],[15,1,15,7],[16,1,16,7],[25,4,25,6],[40,4,40,6],[25,3,26,3],[40,3,41,3],[51,0,51,2],[52,0,52,2],[50,0,50,2]]}
["Fiche Evaluation Mémoire de Fin d'Etudes"]
["Programme ICN Grande Ecole"]
[]
[null,"A transmettre à la scolarité du diplôme ICN en gardant une photocopie de tout document transmis"]
[]
[]
[null,null,"Version :","v 2.2"]
[null,null,"Validité :","Promo ICN3 2014-15 et suivantes"]
[]
["Nom/Prénom étudiant :"]
["(ou binôme)"]
["Titre du Mémoire :"]
[]
[]
["SOUTENANCE",null,null,"Date de la soutenance :"]
["Tuteur de mémoire :"]
["Assesseur :"]
[]
["PROCESSUS DE TRAVAIL",null,0.2,"NOTE","NOMBRE DE POINTS :",null,null,{"$f":"SUM(D21:D24)","v":0},null,null,null,null,"Nb Critères :",4]
[null,null,null,null,"0","1-2","3-4","5",null,null,null,null,"Points maxi:",{"$f":"N19*5","v":20}]
["* Régularité du travail",null,null,null,"--","-","+","++",null,null,{"$f":"IF(OR(D21<0,D21>5),\"ERREUR !!\",\"\")","v":""}]
["* Contacts avec le Directeur de MFE",null,null,null,"--","-","+","++",null,null,{"$f":"IF(OR(D22<0,D22>5),\"ERREUR !!\",\"\")","v":""}]
["* Respect des instructions",null,null,null,"--","-","+","++",null,null,""]
["* Respect des échéances",null,null,null,"--","-","+","++",null,null,""]
[]
["RAPPORT ECRIT",null,0.5,"NOTE","NOMBRE DE POINTS :",null,null,{"$f":"SUM(D29:D31)+SUM(D35:D39)","v":0},null,null,null,null,"Nb Critères :",8]
[null,null,null,null,"0","1-2","3-4","5",null,null,null,null,"Points maxi:",{"$f":"N26*5","v":40}]
["a) Forme du mémoire"]
["* Qualité de l'expression écrite",null,null,null,"--","-","+","++",null,null,{"$f":"IF(OR(D29<0,D29>5),\"ERREUR !!\",\"\")","v":""}]
["* Respect des exigences de forme définies par le Guide du MFE",null,null,null,"--","-","+","++",null,null,{"$f":"IF(OR(D30<0,D30>5),\"ERREUR !!\",\"\")","v":""}]
["* Pertinence des tableaux, figures, schémas explicatifs",null,null,null,"--","-","+","++",null,null,""]
["* Présence de l'attestation signée d'authenticité",null,null,null,"OUI",null,"NON"]
[]
["b) Fond du mémoire",null,null,"Taux d'emprunt (compilatio):","……","%"]
["* Pertinence et élaboration de la problématique",null,null,null,"--","-","+","++",null,null,""]
["* Sélection des sources d'information",null,null,null,"--","-","+","++",null,null,""]
["* Choix des concepts et des outils",null,null,null,"--","-","+","++",null,null,""]
["* Choix méthodologiques et logique du propos",null,null,null,"--","-","+","++",null,null,""]
["* Analyses et recommandations",null,null,null,"--","-","+","++",null,null,""]
[]
["SOUTENANCE",null,0.3,"NOTE","NOMBRE DE POINTS :",null,null,{"$f":"SUM(D43:D47)","v":0},null,null,null,null,"Nb Critères :",5]
[null,null,null,null,"0","1-2","3-4","5",null,null,null,null,"Points maxi:",{"$f":"N41*5","v":25}]
["* Structuration logique de l'exposé",null,null,null,"--","-","+","++",null,null,{"$f":"IF(OR(D43<0,D43>5),\"ERREUR !!\",\"\")","v":""}]
["* Qualité de l'expression orale",null,null,null,"--","-","+","++",null,null,""]
["* Gestion du temps de la soutenance",null,null,null,"--","-","+","++",null,null,""]
["* Argumentation face aux questions du jury",null,null,null,"--","-","+","++",null,null,""]
["* Qualité des supports de présentation",null,null,null,"--","-","+","++",null,null,""]
[]
["DIFFUSION"]
[]
["Ce mémoire est-il confidentiel ?"]
["L'étudiant autorise-t-il la diffusion de son mémoire en ligne ?"]
["S'il n'est pas confidentiel, sélectionnez-vous ce mémoire pour être diffusé dans le fonds électronique des mémoires ICN ?"]
[]
["Appréciation générale du jury :",null,null,null,"POINTS","COEFF","TOTAL",null,null,null,null,null,"Total Maxi:",{"$f":"N42*F58+N27*F57+N20*F56","v":315}]
[null,null,null,"P",{"$f":"H19","v":0},2,{"$f":"E56*F56/$N$20","v":0}]
[null,null,null,"R",{"$f":"H26","v":0},5,{"$f":"E57*F57/$N$27","v":0}]
[null,null,null,"S",{"$f":"H41","v":0},3,{"$f":"E58*F58/$N$42","v":0}]
[null,null,null,null,{"$f":"SUM(E56:E58)","v":0},{"$f":"SUM(F56:F58)","v":10},{"$f":"SUM(G56:G58)","v":0}]
[]
[null,null,null,null,null,null,"NOTE SUR 20 :",{"$f":"G59/F59*20","v":0}]
[]
[null,null,null,null,null,null,"NOTE FINALE :"]